fUST/lending_fUST_20250909
["ID","MTS","AMOUNT","RATE_DAILY","PERIOD"]
[384370687,1757352663792,-480.0,0.0001726,2]
[384370688,1757352663805,-500.75,0.0001726,2]
[384370689,1757352663815,-480.0,0.0001726,2]
[384370690,1757352663825,-1584.4,0.0001726,2]
[384370691,1757352663838,-480.0,0.0001726,2]
[384370692,1757352663848,-1514.54,0.0001726,2]
[384370693,1757352663858,-480.0,0.0001726,2]
[384370694,1757352663869,-724.91,0.0001726,2]
[384370695,1757352663879,-678.86,0.0001726,2]
[384370696,1757352663888,-1736.3,0.0001726,2]
[384370697,1757352663901,-480.0,0.0001726,2]
[384370698,1757352663911,-4189.79,0.0001726,2]
[384370699,1757352663920,-480.0,0.0001726,2]
[384370700,1757352663930,-1974.33,0.0001726,2]
[384370701,1757352663939,-480.0,0.0001726,2]
[384370702,1757352663949,-348.07,0.0001726,2]
[384370703,1757352663959,-250.0,0.000173,2]
[384370704,1757352663969,-1017.621473,0.00017512,2]
[384370705,1757352663979,-500.0,0.00017534,2]
[384370706,1757352663989,-487.22,0.00017534,2]
[384370707,1757352663999,-480.0,0.00017534,2]
[384370708,1757352664009,-480.0,0.00017534,2]
[384370709,1757352664018,-480.0,0.00017534,2]
[384370710,1757352664028,-480.0,0.00017534,2]
[384370711,1757352664038,-480.0,0.00017534,2]
[384370712,1757352664048,-480.0,0.00017534,2]
[384370713,1757352664060,-479.02,0.00017534,2]
[384370714,1757352664070,-990.99,0.00017534,2]
[384370715,1757352664081,-1112.82,0.00017534,2]
[384370716,1757352664090,-480.0,0.00017534,2]
[384370717,1757352664100,-1002.33,0.00017534,2]
[384370718,1757352664110,-688.41,0.00017534,2]
[384370719,1757352664122,-480.0,0.00017534,2]
[384370720,1757352664131,-666.67,0.00017534,2]
[384370721,1757352664141,-480.0,0.00017534,2]
[384370722,1757352664152,-2928.46,0.00017534,2]
[384370723,1757352664163,-641.82,0.00017534,2]
[384370724,1757352664174,-815.44,0.00017534,2]
[384370725,1757352664184,-480.0,0.00017534,2]
[384370726,1757352664194,-480.0,0.00017534,2]
[384370727,1757352664204,-500.75,0.00017534,2]
[384370728,1757352664214,-480.0,0.00017534,2]
[384370729,1757352664224,-1584.4,0.00017534,2]
[384370730,1757352664234,-480.0,0.00017534,2]
[384370731,1757352664243,-1514.54,0.00017534,2]
[384370732,1757352664253,-480.0,0.00017534,2]
[384370733,1757352664263,-678.86,0.00017534,2]
[384370734,1757352664272,-724.91,0.00017534,2]
[384370735,1757352664282,-1736.3,0.00017534,2]
[384370736,1757352664293,-480.0,0.00017534,2]
[384370737,1757352664303,-4189.79,0.00017534,2]
[384370738,1757352664313,-480.0,0.00017534,2]
[384370739,1757352664322,-1974.33,0.00017534,2]
[384370740,1757352664332,-480.0,0.00017534,2]
[384370741,1757352664382,-250.0,0.0001757,2]
[384370742,1757352664393,-560.0,0.00017638,2]
[384370743,1757352664404,-2000.0,0.0001768,2]
[384370744,1757352664414,-2000.0,0.0001768,2]
[384370745,1757352664424,-1083.14290168,0.0001768,2]
[384370746,1757352664435,-2000.0,0.00017704,2]
[384370747,1757352664447,-2000.0,0.00017704,2]
[384370748,1757352664458,-1844.79167425,0.0001773,2]
[384370749,1757352664467,-400.0,0.00017747,20]
[384370750,1757352664478,-643.44141183,0.00017808,2]
[384370751,1757352664488,-487.22,0.00017808,2]
[384370752,1757352664498,-480.0,0.00017808,2]
[384370753,1757352664508,-480.0,0.00017808,2]
[384370754,1757352664518,-480.0,0.00017808,2]
[384370755,1757352664527,-480.0,0.00017808,2]
[384370756,1757352664537,-480.0,0.00017808,2]
[384370757,1757352664548,-480.0,0.00017808,2]
[384370758,1757352664558,-990.99,0.00017808,2]
[384370759,1757352664567,-1112.82,0.00017808,2]
[384370760,1757352664579,-480.0,0.00017808,2]
[384370761,1757352664588,-1002.33,0.00017808,2]
[384370762,1757352664597,-688.41,0.00017808,2]
[384370763,1757352664606,-249.19900821,0.00017808,2]
[384370764,1757352664616,-666.67,0.00017808,2]
[384370765,1757352664626,-480.0,0.00017808,2]
[384370766,1757352664636,-2928.46,0.00017808,2]
[384370767,1757352664647,-641.82,0.00017808,2]
[384370768,1757352664657,-815.44,0.00017808,2]
[384370769,1757352664666,-480.0,0.00017808,2]
[384370770,1757352664675,-480.0,0.00017808,2]
[384370771,1757352664684,-500.75,0.00017808,2]
[384370772,1757352664694,-480.0,0.00017808,2]
[384370773,1757352664702,-1584.4,0.00017808,2]
[384370774,1757352664712,-480.0,0.00017808,2]
[384370775,1757352664721,-1514.54,0.00017808,2]
[384370776,1757352664731,-480.0,0.00017808,2]
[384370777,1757352664741,-678.86,0.00017808,2]
[384370778,1757352664750,-724.91,0.00017808,2]
[384370779,1757352664760,-1736.3,0.00017808,2]
[384370780,1757352664770,-428.41,0.00017808,2]
[384370781,1757352664781,-4189.79,0.00017808,2]
[384370782,1757352664791,-480.0,0.00017808,2]
[384370783,1757352664803,-1974.33,0.00017808,2]
[384370784,1757352664812,-480.0,0.00017808,2]
[384370785,1757352664822,-1249.57671594,0.00017812,2]
[384370786,1757352664832,-158.06004901,0.00018,2]
[384370787,1757352664842,-1193.2528517,0.00018065,2]
[384370788,1757352664853,-487.22,0.00018082,2]
[384370789,1757352664863,-480.0,0.00018082,2]
[384370790,1757352664873,-480.0,0.00018082,2]
[384370791,1757352664883,-516.03,0.00018082,2]
[384370792,1757352664893,-480.0,0.00018082,2]
[384370793,1757352664904,-480.0,0.00018082,2]
[384370794,1757352664913,-480.0,0.00018082,2]
[384370795,1757352664923,-990.99,0.00018082,2]
[384370796,1757352664932,-1112.82,0.00018082,2]
[384370797,1757352664942,-528.48516241,0.00018082,2]
[384370798,1757352664951,-688.41,0.00018082,2]
[384370799,1757352664962,-1002.33,0.00018082,2]
[384370800,1757352664971,-666.67,0.00018082,2]
[384370801,1757352664981,-480.0,0.00018082,2]
[384370802,1757352664990,-2928.46,0.00018082,2]
[384370803,1757352665000,-641.82,0.00018082,2]
[384370804,1757352665010,-815.44,0.00018082,2]
[384370805,1757352665019,-480.0,0.00018082,2]
[384370806,1757352665029,-480.0,0.00018082,2]
[384370807,1757352665038,-500.75,0.00018082,2]
[384370808,1757352665047,-480.0,0.00018082,2]
[384370809,1757352665057,-1584.4,0.00018082,2]
[384370810,1757352665067,-480.0,0.00018082,2]
[384370811,1757352665076,-1514.54,0.00018082,2]
[384370812,1757352665086,-493.93,0.00018082,2]
[384370813,1757352665095,-678.86,0.00018082,2]
[384370814,1757352665104,-724.91,0.00018082,2]
[384370815,1757352665114,-1736.3,0.00018082,2]
[384370816,1757352665125,-4189.79,0.00018082,2]
[384370817,1757352665135,-480.0,0.00018082,2]
[384370818,1757352665144,-1974.33,0.00018082,2]
[384370819,1757352665155,-480.0,0.00018082,2]
[384370820,1757352665164,-5021.4472672,0.00018082,2]
[384370821,1757352665173,-10576.6745308,0.000181,7]
[384370822,1757352665183,-203.26219058,0.000181,7]
[384370823,1757352665193,-530.71506861,0.000181,7]
[384370824,1757352665202,-9501.30949729,0.0001815,5]
[384370825,1757352665212,-660.0,0.00018186,2]
[384370826,1757352665222,-331.787355,0.00018225,3]
[384370827,1757352665231,-2500.0,0.00018228,2]
[384370828,1757352665240,-2191.49837678,0.00018228,2]
[384370829,1757352665250,-2198.9208928,0.00018252,2]
[384370830,1757352665259,-1140.66368932,0.00018252,2]
[384370831,1757352665269,-151.0,0.00018256,2]
[384370832,1757352665278,-151.0,0.00018256,2]
[384370833,1757352665288,-151.0,0.00018256,2]
[384370834,1757352665298,-172.565178,0.00018256,2]
[384370835,1757352665307,-172.565178,0.00018256,2]
[384370836,1757352665317,-172.565178,0.00018256,2]
[384370837,1757352665327,-172.565186,0.00018256,2]
[384370838,1757352665338,-151.0,0.00018356,2]
[384370839,1757352665348,-487.22,0.00018356,2]
[384370840,1757352665357,-151.0,0.00018356,2]
[384370841,1757352665367,-480.0,0.00018356,2]
[384370842,1757352665377,-480.0,0.00018356,2]
[384370843,1757352665386,-480.0,0.00018356,2]
[384370844,1757352665397,-439.59,0.00018356,2]
[384370845,1757352665407,-480.0,0.00018356,2]
[384370846,1757352665415,-990.99,0.00018356,2]
[384370847,1757352665425,-1112.82,0.00018356,2]
[384370848,1757352665434,-688.41,0.00018356,2]
[384370849,1757352665444,-1002.33,0.00018356,2]
[384370850,1757352665453,-666.67,0.00018356,2]
[384370851,1757352665463,-480.0,0.00018356,2]
[384370852,1757352665472,-2928.46,0.00018356,2]
[384370853,1757352665482,-641.82,0.00018356,2]
[384370854,1757352665492,-815.44,0.00018356,2]
[384370855,1757352665502,-303.22,0.00018356,2]
[384370856,1757352665511,-480.0,0.00018356,2]
[384370857,1757352665521,-500.75,0.00018356,2]
[384370858,1757352665531,-480.0,0.00018356,2]
[384370859,1757352665540,-1584.4,0.00018356,2]
[384370860,1757352665550,-480.0,0.00018356,2]
[384370861,1757352665559,-1514.54,0.00018356,2]
[384370862,1757352665568,-678.86,0.00018356,2]
[384370863,1757352665577,-724.91,0.00018356,2]
[384370864,1757352665587,-1736.3,0.00018356,2]
[384370865,1757352665598,-4189.79,0.00018356,2]
[384370866,1757352665607,-480.0,0.00018356,2]
[384370867,1757352665617,-1974.33,0.00018356,2]
[384370868,1757352665627,-480.0,0.00018356,2]
[384370869,1757352665636,-338.860016,0.00018493,2]
[384370870,1757352665646,-1000.0,0.00018595,20]
[384370871,1757352665656,-25336.3714142,0.000186,2]
[384370872,1757352665665,-151.0,0.000186,2]
[384370873,1757352665674,-151.0,0.000186,2]
[384370874,1757352665684,-151.0,0.000186,2]
[384370875,1757352665693,-151.0,0.000186,2]
[384370876,1757352665703,-151.0,0.000186,2]
[384370877,1757352665712,-151.0,0.000186,2]
[384370878,1757352665722,-624.735508,0.000186,2]
[384370879,1757352665732,-624.735508,0.000186,2]
[384370880,1757352665741,-624.735508,0.000186,2]
[384370881,1757352665751,-624.735508,0.000186,2]
[384370882,1757352665760,-487.22,0.0001863,2]
[384370883,1757352665770,-480.0,0.0001863,2]
[384370884,1757352665779,-480.0,0.0001863,2]
[384370885,1757352665788,-480.0,0.0001863,2]
[384370886,1757352665801,-480.0,0.0001863,2]
[384370887,1757352665810,-990.99,0.0001863,2]
[384370888,1757352665819,-1112.82,0.0001863,2]
[384370889,1757352665829,-688.41,0.0001863,2]
[384370890,1757352665839,-1002.33,0.0001863,2]
[384370891,1757352665849,-666.67,0.0001863,2]
[384370892,1757352665858,-569.39,0.0001863,2]
[384370893,1757352665869,-2928.46,0.0001863,2]
[384370894,1757352665879,-641.82,0.0001863,2]
[384370895,1757352665890,-815.44,0.0001863,2]
[384370896,1757352665901,-170.34,0.0001863,2]
[384370897,1757352665911,-500.75,0.0001863,2]
[384370898,1757352665920,-480.0,0.0001863,2]
[384370899,1757352665931,-1584.4,0.0001863,2]
[384370900,1757352665941,-480.0,0.0001863,2]
[384370901,1757352665951,-1514.54,0.0001863,2]
[384370902,1757352665961,-678.86,0.0001863,2]
[384370903,1757352665970,-724.91,0.0001863,2]
[384370904,1757352665980,-1736.3,0.0001863,2]
[384370905,1757352665990,-4189.79,0.0001863,2]
[384370906,1757352665999,-480.0,0.0001863,2]
[384370907,1757352666009,-1974.33,0.0001863,2]
[384370908,1757352666019,-480.0,0.0001863,2]
[384370909,1757352666029,-1000.0,0.000187,2]
[384370910,1757352666038,-1000.0,0.000187,2]
[384370911,1757352666048,-1000.0,0.000187,2]
[384370912,1757352666057,-1000.0,0.000187,2]
[384370913,1757352666066,-1000.0,0.000187,2]
[384370914,1757352666075,-1000.0,0.000187,2]
[384370915,1757352666085,-1000.0,0.000187,2]
[384370916,1757352666095,-1000.0,0.000187,2]
[384370917,1757352666104,-1000.0,0.000187,2]
[384370918,1757352666113,-760.0,0.00018734,2]
[384370919,1757352666122,-3000.0,0.00018776,2]
[384370920,1757352666132,-400.0,0.00018836,26]
[384370921,1757352666142,-487.22,0.00018904,2]
[384370922,1757352666153,-167.93,0.00018904,2]
[384370923,1757352666162,-619.61,0.00018904,2]
[384370924,1757352666171,-465.92,0.00018904,2]
[384370925,1757352666181,-480.0,0.00018904,2]
[384370926,1757352666191,-990.99,0.00018904,2]
[384370927,1757352666201,-1112.82,0.00018904,2]
[384370928,1757352666210,-688.41,0.00018904,2]
[384370929,1757352666220,-1002.33,0.00018904,2]
[384370930,1757352666230,-666.67,0.00018904,2]
[384370931,1757352666239,-2928.46,0.00018904,2]
[384370932,1757352666249,-641.82,0.00018904,2]
[384370933,1757352666259,-815.44,0.00018904,2]
[384370934,1757352666268,-500.75,0.00018904,2]
[384370935,1757352666278,-480.0,0.00018904,2]
[384370936,1757352666288,-1584.4,0.00018904,2]
[384370937,1757352666298,-272.05658046,0.00018904,2]
[384370938,1757352666308,-1514.54,0.00018904,2]
[384370939,1757352666318,-678.86,0.00018904,2]
[384370940,1757352666327,-724.91,0.00018904,2]
[384370941,1757352666337,-1736.3,0.00018904,2]
[384370942,1757352666346,-4189.79,0.00018904,2]
[384370943,1757352666356,-465.34288126,0.00018904,2]
[384370944,1757352666366,-1974.33,0.00018904,2]
[384370945,1757352666376,-480.0,0.00018904,2]
[384370946,1757352666385,-1017.621473,0.00019134,2]
[384370947,1757352666395,-976.0,0.00019149,2]
[384370948,1757352666406,-2154.0,0.00019149,2]
[384370949,1757352666415,-634.0,0.00019149,2]
[384370950,1757352666425,-409.0,0.00019149,2]
[384370951,1757352666435,-500.0,0.00019178,2]
[384370952,1757352666444,-500.0,0.00019178,2]
[384370953,1757352666454,-487.22,0.00019178,2]
[384370954,1757352666464,-480.0,0.00019178,2]
[384370955,1757352666474,-990.99,0.00019178,2]
[384370956,1757352666484,-1112.82,0.00019178,2]
[384370957,1757352666494,-688.41,0.00019178,2]
[384370958,1757352666503,-1002.33,0.00019178,2]
[384370959,1757352666514,-666.67,0.00019178,2]
[384370960,1757352666523,-2928.46,0.00019178,2]
[384370961,1757352666532,-641.82,0.00019178,2]
[384370962,1757352666542,-815.44,0.00019178,2]
[384370963,1757352666552,-500.75,0.00019178,2]
[384370964,1757352666562,-287.66,0.00019178,2]
[384370965,1757352666572,-1584.4,0.00019178,2]
[384370966,1757352666582,-1514.54,0.00019178,2]
[384370967,1757352666592,-724.91,0.00019178,2]
[384370968,1757352666602,-678.86,0.00019178,2]
[384370969,1757352666612,-1736.3,0.00019178,2]
[384370970,1757352666622,-4189.79,0.00019178,2]
[384370971,1757352666631,-1974.33,0.00019178,2]
[384370972,1757352666642,-480.0,0.00019178,2]
[384370973,1757352666652,-151.0,0.00019178,2]
[384370974,1757352666663,-5000.0,0.00019178,2]
[384370975,1757352666672,-5000.0,0.00019178,2]
[384370976,1757352666682,-5000.0,0.00019178,2]
[384370977,1757352666691,-5000.0,0.00019178,2]
[384370978,1757352666702,-5000.0,0.00019178,2]
[384370979,1757352666711,-1376.06567007,0.00019178,2]
[384370980,1757352666722,-151.0,0.00019178,7]
[384370981,1757352666731,-151.0,0.00019178,7]
[384370982,1757352666741,-151.0,0.00019178,7]
[384370983,1757352666751,-151.0,0.00019178,7]
[384370984,1757352666760,-151.0,0.00019178,7]
[384370985,1757352666769,-151.0,0.00019178,7]
[384370986,1757352666779,-151.0,0.00019178,7]
[384370987,1757352666789,-151.0,0.00019178,7]
[384370988,1757352666802,-151.0,0.00019178,7]
[384370989,1757352666811,-151.0,0.00019178,7]
[384370990,1757352666821,-256.008644,0.00019178,7]
[384370991,1757352666832,-3064.77507558,0.00019205,5]
[384370992,1757352666843,-259.99041039,0.00019233,2]
[384370993,1757352666852,-860.0,0.00019282,2]
[384370994,1757352666862,-300.0,0.00019315,2]
[384370995,1757352666873,-3500.0,0.00019324,2]
[384370996,1757352666884,-4027.0,0.00019373,2]
[384370997,1757352666894,-331.787355,0.00019447,2]
[384370998,1757352666905,-500.0,0.00019452,2]
[384370999,1757352666916,-500.0,0.00019452,2]
[384371000,1757352666925,-487.22,0.00019452,2]
[384371001,1757352666935,-480.0,0.00019452,2]
[384371002,1757352666945,-990.99,0.00019452,2]
[384371003,1757352666955,-1112.82,0.00019452,2]
[384371004,1757352666965,-1002.33,0.00019452,2]
[384371005,1757352666974,-688.41,0.00019452,2]
[384371006,1757352666984,-666.67,0.00019452,2]
[384371007,1757352666992,-2928.46,0.00019452,2]
[384371008,1757352667003,-641.82,0.00019452,2]
[384371009,1757352667012,-815.44,0.00019452,2]
[384371010,1757352667021,-500.75,0.00019452,2]
[384371011,1757352667031,-1584.4,0.00019452,2]
[384371012,1757352667042,-1514.54,0.00019452,2]
[384371013,1757352667051,-678.86,0.00019452,2]
[384371014,1757352667061,-724.91,0.00019452,2]
[384371015,1757352667071,-1736.3,0.00019452,2]
[384371016,1757352667081,-4189.79,0.00019452,2]
[384371017,1757352667091,-1974.33,0.00019452,2]
[384371018,1757352667101,-434.43,0.00019452,2]
[384371019,1757352667111,-450.0,0.00019452,2]
[384371020,1757352667121,-2700.0,0.0001952,2]
[384371021,1757352667131,-600.69465764,0.00019589,2]
[384371022,1757352667141,-201.96893483,0.00019726,2]
[384371023,1757352667151,-539.85290593,0.00019726,2]
[384371024,1757352667161,-487.22,0.00019726,2]
[384371025,1757352667170,-480.0,0.00019726,2]
[384371026,1757352667180,-990.99,0.00019726,2]
[384371027,1757352667190,-1112.82,0.00019726,2]
[384371028,1757352667199,-1002.33,0.00019726,2]
[384371029,1757352667209,-688.41,0.00019726,2]
[384371030,1757352667219,-666.67,0.00019726,2]
[384371031,1757352667230,-2928.46,0.00019726,2]
[384371032,1757352667240,-641.82,0.00019726,2]
[384371033,1757352667250,-815.44,0.00019726,2]
[384371034,1757352667260,-500.75,0.00019726,2]
[384371035,1757352667270,-1584.4,0.00019726,2]
[384371036,1757352667280,-1514.54,0.00019726,2]
[384371037,1757352667290,-678.86,0.00019726,2]
[384371038,1757352667299,-724.91,0.00019726,2]
[384371039,1757352667309,-1736.3,0.00019726,2]
[384371040,1757352667319,-4189.79,0.00019726,2]
[384371041,1757352667329,-1974.33,0.00019726,2]
[384371042,1757352667338,-960.0,0.0001983,2]
[384371043,1757352667348,-4000.0,0.00019872,2]
[384371044,1757352667358,-268.498695,0.000199,2]
[384371045,1757352667368,-23622.00996694,0.000199,2]
[384371046,1757352667378,-5000.0,0.00019968,2]
[384371047,1757352667387,-1249.57671594,0.00019985,2]
[384371048,1757352667397,-909.02988095,0.0002,2]
[384371049,1757352667408,-14455.00877205,0.0002,2]
[384371050,1757352667418,-365.42329299,0.0002,2]
[384371051,1757352667427,-20000.0,0.0002,2]
[384371052,1757352667437,-49776.20854022,0.0002,2]
[384371053,1757352667447,-23000.0,0.0002,2]
[384371054,1757352667457,-83806.41601255,0.0002,2]
[384371055,1757352667467,-258.6140653,0.0002,2]
[384371056,1757352667476,-160.0,0.0002,7]
[384371057,1757352667485,-173.86,0.0002,2]
[384371058,1757352667495,-487.28,0.0002,2]
[384371059,1757352667506,-331.787355,0.0002,4]
[384371060,1757352667516,-173.859,0.0002,2]
[384371061,1757352667526,-346.0496781,0.0002,2]
[384371062,1757352667536,-991.06002258,0.0002,2]
[384371063,1757352667546,-1112.95307976,0.0002,2]
[384371064,1757352667556,-1002.46132946,0.0002,2]
[384371065,1757352667565,-688.60660048,0.0002,2]
[384371066,1757352667575,-666.73465792,0.0002,2]
[384371067,1757352667586,-2928.65325811,0.0002,2]
[384371068,1757352667595,-641.93044951,0.0002,2]
[384371069,1757352667606,-815.51,0.0002,2]
[384371070,1757352667615,-302.93795421,0.0002,2]
[384371071,1757352667625,-500.88486026,0.0002,2]
[384371072,1757352667635,-1584.50654711,0.0002,2]
[384371073,1757352667644,-1514.54075688,0.0002,2]
[384371074,1757352667657,-725.04388718,0.0002,2]
[384371075,1757352667667,-679.06880911,0.0002,2]
[384371076,1757352667677,-1736.32970536,0.0002,2]
[384371077,1757352667687,-4000.0,0.0002,4]
[384371078,1757352667697,-4189.81741257,0.0002,2]
[384371079,1757352667707,-1974.51274734,0.0002,2]
[384371080,1757352667718,-331.787355,0.0002015,3]
[384371081,1757352667728,-612.325078,0.00020187,2]
[384371082,1757352667738,-999.8,0.000202,2]
[384371083,1757352667749,-1060.0,0.00020378,2]
[384371084,1757352667758,-999.8,0.00020402,2]
[384371085,1757352667769,-4500.0,0.0002042,2]
[384371086,1757352667779,-155.3806969,0.00020443,2]
[384371087,1757352667789,-1000.0,0.00020455,20]
[384371088,1757352667801,-244.0,0.00020455,20]
[384371089,1757352667811,-1135.948537,0.00020548,2]
[384371090,1757352667821,-999.8,0.00020606,2]
[384371091,1757352667830,-2700.0,0.00020616,2]
[384371092,1757352667841,-160.0,0.00020668,3]
[384371093,1757352667851,-1017.621473,0.00020755,2]
[384371094,1757352667861,-999.8,0.00020812,2]
[384371095,1757352667873,-5000.0,0.00020835,2]
[384371096,1757352667883,-251.91974708,0.000209,2]
[384371097,1757352667893,-1160.0,0.00020926,2]
[384371098,1757352667904,-5000.0,0.00020968,2]
[384371099,1757352667914,-160.0,0.00020984,4]
[384371100,1757352667924,-555.01931466,0.00021,2]
[384371101,1757352667934,-272.29283198,0.00021,2]
[384371102,1757352667944,-843.28320231,0.00021,10]
[384371103,1757352667954,-203.69353324,0.00021,2]
[384371104,1757352667963,-324.31554587,0.00021,2]
[384371105,1757352667974,-3000.0,0.00021,2]
[384371106,1757352667984,-3000.0,0.0002101,2]
[384371107,1757352667994,-3000.0,0.0002102,2]
[384371108,1757352668004,-999.8,0.0002102,2]
[384371109,1757352668015,-3000.0,0.0002103,2]
[384371110,1757352668025,-3000.0,0.0002104,2]
[384371111,1757352668036,-3000.0,0.0002105,2]
[384371112,1757352668046,-3000.0,0.0002106,2]
[384371113,1757352668056,-3000.0,0.0002107,2]
[384371114,1757352668067,-331.787355,0.00021072,4]
[384371115,1757352668077,-3000.0,0.0002108,2]
[384371116,1757352668086,-3000.0,0.0002109,2]
[384371117,1757352668096,-3000.0,0.000211,2]
[384371118,1757352668107,-3000.0,0.0002111,2]
[384371119,1757352668117,-3000.0,0.0002112,2]
[384371120,1757352668128,-3000.0,0.0002113,2]
[384371121,1757352668138,-3000.0,0.0002114,2]
[384371122,1757352668149,-3000.0,0.0002115,2]
[384371123,1757352668160,-3000.0,0.0002116,2]
[384371124,1757352668171,-3000.0,0.0002117,2]
[384371125,1757352668180,-23622.00996683,0.00021173,2]
[384371126,1757352668191,-3000.0,0.0002118,2]
[384371127,1757352668200,-3000.0,0.0002119,2]
[384371128,1757352668210,-3000.0,0.000212,2]
[384371129,1757352668220,-3000.0,0.0002121,2]
[384371130,1757352668231,-3000.0,0.0002122,2]
[384371131,1757352668240,-3000.0,0.0002123,2]
[384371132,1757352668250,-3000.0,0.0002124,2]
[384371133,1757352668260,-3000.0,0.0002125,2]
[384371134,1757352668270,-4000.0,0.0002125,4]
[384371135,1757352668282,-3000.0,0.0002126,2]
[384371136,1757352668291,-266.4132444,0.00021265,2]
[384371137,1757352668302,-382.7358054,0.00021265,2]
[384371138,1757352668312,-3000.0,0.0002127,2]
[384371139,1757352668322,-3000.0,0.0002128,2]
[384371140,1757352668331,-3000.0,0.0002129,2]
[384371141,1757352668342,-160.0,0.00021299,5]
[384371142,1757352668352,-3000.0,0.000213,2]
[384371143,1757352668492,-3000.0,0.0002131,2]
[384371144,1757352668517,-3000.0,0.0002132,2]
[384371145,1757352668527,-3000.0,0.0002133,2]
[384371146,1757352668536,-3000.0,0.0002134,2]
[384371147,1757352668546,-3000.0,0.0002135,2]
[384371148,1757352668556,-3000.0,0.0002136,2]
[384371149,1757352668566,-3000.0,0.0002137,2]
[384371150,1757352668576,-3000.0,0.0002138,2]
[384371151,1757352668586,-3000.0,0.0002139,2]
[384371152,1757352668595,-3000.0,0.000214,2]
[384371153,1757352668605,-3000.0,0.0002141,2]
[384371154,1757352668614,-3000.0,0.0002142,2]
[384371155,1757352668624,-3000.0,0.0002143,2]
[384371156,1757352668634,-4042.125492,0.0002144,2]
[384371157,1757352668644,-1260.0,0.00021474,2]
[384371158,1757352668655,-12624.50952311,0.000215,2]
[384371159,1757352668664,-5500.0,0.00021516,2]
[384371160,1757352668675,-160.0,0.00021615,6]
[384371161,1757352668684,-5000.0,0.00021701,2]
[384371162,1757352668694,-2700.0,0.00021712,2]
[384371163,1757352668703,-723.33,0.00021917,2]
[384371164,1757352668713,-723.33,0.00021917,2]
[384371165,1757352668723,-723.33,0.00021917,2]
[384371166,1757352668732,-723.33,0.00021917,2]
[384371167,1757352668743,-723.33,0.00021917,2]
[384371168,1757352668754,-723.33,0.00021917,2]
[384371169,1757352668763,-723.33,0.00021917,2]
[384371170,1757352668773,-723.33,0.00021917,2]
[384371171,1757352668783,-723.33,0.00021917,2]
[384371172,1757352668796,-723.33,0.00021917,2]
[384371173,1757352668807,-723.33,0.00021917,2]
[384371174,1757352668817,-723.33,0.00021917,2]
[384371175,1757352668826,-723.33,0.00021917,2]
[384371176,1757352668837,-723.33,0.00021917,2]
[384371177,1757352668847,-723.33,0.00021917,2]
[384371178,1757352668856,-723.33,0.00021917,2]
[384371179,1757352668866,-723.33,0.00021917,2]
[384371180,1757352668878,-723.33,0.00021917,2]
[384371181,1757352668888,-723.33,0.00021917,2]
[384371182,1757352668899,-723.33,0.00021917,2]
[384371183,1757352668909,-723.33,0.00021917,2]
[384371184,1757352668919,-723.33,0.00021917,2]
[384371185,1757352668929,-723.33,0.00021917,2]
[384371186,1757352668938,-723.38974956,0.00021917,2]